[Event "Titled Tuesday Blitz January 10 Early 2023"]
[White "Keymer, Vincent"]
[Black "Acor, Corey"]
[WhiteFideId "12940690"]
[BlackFideId "2024861"]
[WhiteElo "2700"]
[BlackElo "2216"]
[Result "1-0"]
[Round "05"]
[TimeControl "180+2"]
[Date "2023.01.10"]
[WhiteClock "0:00:11"]
[BlackClock "0:00:03"]

1. a3 {[%clk 0:03:00]}  e5 {[%clk 0:02:55]} 2. c4 {[%clk 0:03:00]}  Nc6 {[%clk 0:02:54]} 3. d3 {[%clk 0:03:00]}  g6 {[%clk 0:02:55]} 4. g3 {[%clk 0:02:56]}  Bg7 {[%clk 0:02:55]} 5. Bg2 {[%clk 0:02:57]}  d6 {[%clk 0:02:55]} 6. Nc3 {[%clk 0:02:56]}  Be6 {[%clk 0:02:55]} 7. b4 {[%clk 0:02:56]}  a6 {[%clk 0:02:53]} 8. Bb2 {[%clk 0:02:52]}  Nf6 {[%clk 0:02:39]} 9. Nf3 {[%clk 0:02:49]}  h6 {[%clk 0:02:37]} 10. O-O {[%clk 0:02:45]}  d5 {[%clk 0:02:32]} 11. cxd5 {[%clk 0:02:42]}  Nxd5 {[%clk 0:02:33]} 12. Ne4 {[%clk 0:02:41]}  b6 {[%clk 0:02:30]} 13. Rc1 {[%clk 0:02:35]}  Nde7 {[%clk 0:02:25]} 14. Qa4 {[%clk 0:02:11]}  Bd7 {[%clk 0:01:59]} 15. Qc2 {[%clk 0:01:57]}  O-O {[%clk 0:01:58]} 16. Rfd1 {[%clk 0:01:57]}  f5 {[%clk 0:01:48]} 17. Qb3+ {[%clk 0:01:49]}  Kh7 {[%clk 0:01:38]} 18. Ned2 {[%clk 0:01:48]}  Rc8 {[%clk 0:01:11]} 19. e3 {[%clk 0:01:38]}  Qe8 {[%clk 0:00:51]} 20. Nc4 {[%clk 0:01:29]}  Ng8 {[%clk 0:00:50]} 21. Qc2 {[%clk 0:01:16]}  Nce7 {[%clk 0:00:43]} 22. Qe2 {[%clk 0:00:38]}  Ba4 {[%clk 0:00:42]} 23. Re1 {[%clk 0:00:39]}  Nc6 {[%clk 0:00:39]} 24. h4 {[%clk 0:00:38]}  Kh8 {[%clk 0:00:37]} 25. Ba1 {[%clk 0:00:32]}  Bb5 {[%clk 0:00:37]} 26. Qc2 {[%clk 0:00:29]}  Qe6 {[%clk 0:00:33]} 27. Qb3 {[%clk 0:00:24]}  e4 {[%clk 0:00:24]} 28. Bxg7+ {[%clk 0:00:21]}  Kxg7 {[%clk 0:00:25]} 29. Nfd2 {[%clk 0:00:20]}  exd3 {[%clk 0:00:20]} 30. Qxd3 {[%clk 0:00:20]}  Rcd8 {[%clk 0:00:19]} 31. Qc3+ {[%clk 0:00:21]}  Qf6 {[%clk 0:00:20]} 32. Nb3 {[%clk 0:00:12]}  Bxc4 {[%clk 0:00:15]} 33. Qxc4 {[%clk 0:00:11]}  Ne5 {[%clk 0:00:16]} 34. Qxc7+ {[%clk 0:00:12]}  Rf7 {[%clk 0:00:13]} 35. Qc3 {[%clk 0:00:10]}  Nd3 {[%clk 0:00:13]} 36. Qxf6+ {[%clk 0:00:09]}  Nxf6 {[%clk 0:00:12]} 37. Rcd1 {[%clk 0:00:09]}  Rfd7 {[%clk 0:00:08]} 38. Rf1 {[%clk 0:00:09]}  Nb2 {[%clk 0:00:04]} 39. Rxd7+ {[%clk 0:00:09]}  Rxd7 {[%clk 0:00:05]} 40. Nd4 {[%clk 0:00:10]}  Nc4 {[%clk 0:00:04]} 41. a4 {[%clk 0:00:10]}  Kf7 {[%clk 0:00:05]} 42. Rc1 {[%clk 0:00:10]}  Ne5 {[%clk 0:00:04]} 43. a5 {[%clk 0:00:10]}  bxa5 {[%clk 0:00:04]} 44. bxa5 {[%clk 0:00:11]}  Nd3 {[%clk 0:00:04]} 45. Rc3 {[%clk 0:00:10]}  Nb4 {[%clk 0:00:04]} 46. Rc4 {[%clk 0:00:10]}  Nbd5 {[%clk 0:00:04]} 47. Rc6 {[%clk 0:00:10]}  Nb4 {[%clk 0:00:03]} 48. Rb6 {[%clk 0:00:11]}  Nfd5 {[%clk 0:00:04]} 49. Bxd5+ {[%clk 0:00:11]}  Nxd5 {[%clk 0:00:05]} 50. Rxa6 {[%clk 0:00:11]}  Rc7 {[%clk 0:00:04]} 51. Rc6 {[%clk 0:00:11]}  Rb7 {[%clk 0:00:04]} 52. Rd6 {[%clk 0:00:11]}  Rb1+ {[%clk 0:00:04]} 53. Kg2 {[%clk 0:00:11]}  Nc3 {[%clk 0:00:04]} 54. a6 {[%clk 0:00:12]}  Ra1 {[%clk 0:00:04]} 55. Rd7+ {[%clk 0:00:12]}  Kf6 {[%clk 0:00:03]} 56. a7 {[%clk 0:00:12]}  g5 {[%clk 0:00:03]} 57. hxg5+ {[%clk 0:00:11]}  hxg5 {[%clk 0:00:03]} 58. Nc6 {[%clk 0:00:12]}  g4 {[%clk 0:00:04]} 59. Rd8 {[%clk 0:00:11]}  Nb5 {[%clk 0:00:03]} 60. a8=Q {[%clk 0:00:11]} 1-0


[Site "https://www.chess.com"]

[Event "Titled Tuesday Blitz January 10 Early 2023"]
[White "Zahid, Sanatan"]
[Black "Bachmann, Axel"]
[WhiteFideId "10201963"]
[BlackFideId "3700488"]
[WhiteElo "1930"]
[BlackElo "2604"]
[Result "0-1"]
[Round "05"]
[TimeControl "180+2"]
[Date "2023.01.10"]
[WhiteClock "0:00:43"]
[BlackClock "0:00:26"]

1. d4 {[%clk 0:03:00]}  Nf6 {[%clk 0:02:59]} 2. Nc3 {[%clk 0:03:00]}  d5 {[%clk 0:02:58]} 3. Bf4 {[%clk 0:02:59]}  e6 {[%clk 0:02:58]} 4. Nb5 {[%clk 0:02:58]}  Na6 {[%clk 0:02:57]} 5. e3 {[%clk 0:02:56]}  c6 {[%clk 0:02:45]} 6. Nc3 {[%clk 0:02:56]}  Nb8 {[%clk 0:02:45]} 7. g4 {[%clk 0:02:56]}  Bd6 {[%clk 0:02:35]} 8. g5 {[%clk 0:02:55]}  Ng8 {[%clk 0:02:29]} 9. Nf3 {[%clk 0:02:55]}  Qc7 {[%clk 0:02:26]} 10. Qd2 {[%clk 0:02:50]}  Ne7 {[%clk 0:02:17]} 11. h4 {[%clk 0:02:50]}  Nd7 {[%clk 0:02:17]} 12. O-O-O {[%clk 0:02:44]}  e5 {[%clk 0:02:17]} 13. dxe5 {[%clk 0:02:41]}  Nxe5 {[%clk 0:02:17]} 14. Nxe5 {[%clk 0:02:39]}  Bxe5 {[%clk 0:02:18]} 15. Bg2 {[%clk 0:02:35]}  Bg4 {[%clk 0:02:04]} 16. f3 {[%clk 0:02:31]}  Bh5 {[%clk 0:02:04]} 17. Bxe5 {[%clk 0:02:25]}  Qxe5 {[%clk 0:02:04]} 18. Qd4 {[%clk 0:02:26]}  Qxd4 {[%clk 0:01:53]} 19. Rxd4 {[%clk 0:02:27]}  O-O-O {[%clk 0:01:25]} 20. Kd2 {[%clk 0:02:26]}  Rhe8 {[%clk 0:01:18]} 21. Re1 {[%clk 0:02:24]}  c5 {[%clk 0:01:12]} 22. Rf4 {[%clk 0:02:20]}  Kb8 {[%clk 0:01:02]} 23. Ne2 {[%clk 0:02:08]}  Ng6 {[%clk 0:00:59]} 24. Ra4 {[%clk 0:02:07]}  d4 {[%clk 0:00:55]} 25. exd4 {[%clk 0:01:33]}  Nxh4 {[%clk 0:00:52]} 26. Nf4 {[%clk 0:01:33]}  Bxf3 {[%clk 0:00:45]} 27. Rxe8 {[%clk 0:01:32]}  Rxe8 {[%clk 0:00:44]} 28. Bh3 {[%clk 0:01:15]}  Re4 {[%clk 0:00:43]} 29. Nd3 {[%clk 0:01:11]}  Rxd4 {[%clk 0:00:42]} 30. Ra3 {[%clk 0:01:00]}  c4 {[%clk 0:00:37]} 31. Ra4 {[%clk 0:00:54]}  c3+ {[%clk 0:00:35]} 32. bxc3 {[%clk 0:00:48]}  Rxa4 {[%clk 0:00:36]} 33. Nc5 {[%clk 0:00:49]}  Rxa2 {[%clk 0:00:34]} 34. g6 {[%clk 0:00:48]}  hxg6 {[%clk 0:00:33]} 35. Nd3 {[%clk 0:00:47]}  Bc6 {[%clk 0:00:32]} 36. Nb4 {[%clk 0:00:46]}  Ra4 {[%clk 0:00:31]} 37. Nd3 {[%clk 0:00:46]}  Nf5 {[%clk 0:00:29]} 38. Ne5 {[%clk 0:00:45]}  Rh4 {[%clk 0:00:29]} 39. Bf1 {[%clk 0:00:44]}  a5 {[%clk 0:00:26]} 40. Nxf7 {[%clk 0:00:43]}  a4 {[%clk 0:00:26]} 41. Ne5 {[%clk 0:00:43]}  a3 {[%clk 0:00:26]} 0-1


[Site "https://www.chess.com"]

[Event "Titled Tuesday Blitz January 10 Early 2023"]
[White "Goryachkina, Aleksandra"]
[Black "Dvirnyy, Danyyil"]
[WhiteFideId "4147103"]
[BlackFideId "817570"]
[WhiteElo "2571"]
[BlackElo "2541"]
[Result "1/2-1/2"]
[Round "05"]
[TimeControl "180+2"]
[Date "2023.01.10"]
[WhiteClock "0:00:10"]
[BlackClock "0:00:44"]

1. e4 {[%clk 0:03:00]}  e6 {[%clk 0:02:57]} 2. d4 {[%clk 0:02:59]}  d5 {[%clk 0:02:58]} 3. Nc3 {[%clk 0:02:59]}  Nf6 {[%clk 0:02:58]} 4. Bg5 {[%clk 0:02:59]}  h6 {[%clk 0:02:58]} 5. Bxf6 {[%clk 0:02:57]}  Qxf6 {[%clk 0:02:59]} 6. exd5 {[%clk 0:02:57]}  Bb4 {[%clk 0:02:59]} 7. dxe6 {[%clk 0:02:51]}  Bxe6 {[%clk 0:02:59]} 8. Nf3 {[%clk 0:02:51]}  O-O {[%clk 0:02:58]} 9. Be2 {[%clk 0:02:51]}  Rd8 {[%clk 0:02:57]} 10. O-O {[%clk 0:02:50]}  c5 {[%clk 0:02:56]} 11. Ne4 {[%clk 0:02:22]}  Qf4 {[%clk 0:02:48]} 12. Ng3 {[%clk 0:02:20]}  cxd4 {[%clk 0:02:46]} 13. a3 {[%clk 0:02:18]}  Ba5 {[%clk 0:02:46]} 14. Bd3 {[%clk 0:02:15]}  Nc6 {[%clk 0:02:44]} 15. b4 {[%clk 0:02:05]}  Bc7 {[%clk 0:02:41]} 16. Re1 {[%clk 0:02:04]}  Bg4 {[%clk 0:02:36]} 17. Be2 {[%clk 0:01:34]}  d3 {[%clk 0:02:17]} 18. cxd3 {[%clk 0:01:24]}  Bb6 {[%clk 0:02:14]} 19. Qc1 {[%clk 0:01:01]}  Qf6 {[%clk 0:01:53]} 20. Ne4 {[%clk 0:00:57]}  Qg6 {[%clk 0:01:41]} 21. Qf4 {[%clk 0:00:50]}  Bxf3 {[%clk 0:01:41]} 22. Bxf3 {[%clk 0:00:44]}  Nd4 {[%clk 0:01:40]} 23. Rac1 {[%clk 0:00:38]}  Rac8 {[%clk 0:01:36]} 24. Nc5 {[%clk 0:00:36]}  Bxc5 {[%clk 0:01:33]} 25. Rxc5 {[%clk 0:00:32]}  Rxc5 {[%clk 0:01:32]} 26. bxc5 {[%clk 0:00:32]}  Qxd3 {[%clk 0:01:24]} 27. Qe4 {[%clk 0:00:20]}  Nxf3+ {[%clk 0:01:12]} 28. Qxf3 {[%clk 0:00:19]}  Qxf3 {[%clk 0:01:02]} 29. gxf3 {[%clk 0:00:20]}  Rd3 {[%clk 0:00:54]} 30. Re8+ {[%clk 0:00:19]}  Kh7 {[%clk 0:00:54]} 31. Re7 {[%clk 0:00:20]}  Kg6 {[%clk 0:00:49]} 32. Rxb7 {[%clk 0:00:19]}  Rxa3 {[%clk 0:00:49]} 33. Kg2 {[%clk 0:00:13]}  Kf6 {[%clk 0:00:47]} 34. c6 {[%clk 0:00:13]}  Rc3 {[%clk 0:00:47]} 35. c7 {[%clk 0:00:12]}  a5 {[%clk 0:00:46]} 36. Ra7 {[%clk 0:00:12]}  a4 {[%clk 0:00:44]} 37. Rxa4 {[%clk 0:00:10]}  Rxc7 {[%clk 0:00:44]} 38. Ra6+ {[%clk 0:00:10]} 1/2-1/2


[Site "https://www.chess.com"]

[Event "Titled Tuesday Blitz January 10 Early 2023"]
[White "Tomashevsky, Evgeny"]
[Black "Starozhilov, Leonid"]
[WhiteFideId "4147235"]
[BlackFideId "14106752"]
[WhiteElo "2694"]
[BlackElo "2313"]
[Result "1-0"]
[Round "05"]
[TimeControl "180+2"]
[Date "2023.01.10"]
[WhiteClock "0:00:27"]
[BlackClock "0:00:02"]

1. e4 {[%clk 0:02:45]}  Nc6 {[%clk 0:02:56]} 2. Nf3 {[%clk 0:02:44]}  d6 {[%clk 0:02:56]} 3. Nc3 {[%clk 0:02:43]}  Nf6 {[%clk 0:02:57]} 4. d4 {[%clk 0:02:41]}  g6 {[%clk 0:02:58]} 5. d5 {[%clk 0:02:40]}  Nb8 {[%clk 0:02:58]} 6. Bd3 {[%clk 0:02:39]}  Bg4 {[%clk 0:02:58]} 7. O-O {[%clk 0:02:37]}  Nbd7 {[%clk 0:02:57]} 8. h3 {[%clk 0:02:37]}  Bxf3 {[%clk 0:02:57]} 9. Qxf3 {[%clk 0:02:37]}  Bg7 {[%clk 0:02:58]} 10. Qe2 {[%clk 0:02:36]}  c6 {[%clk 0:02:58]} 11. dxc6 {[%clk 0:02:19]}  bxc6 {[%clk 0:02:58]} 12. f4 {[%clk 0:02:20]}  Qc7 {[%clk 0:02:29]} 13. Bd2 {[%clk 0:02:16]}  O-O {[%clk 0:02:28]} 14. Rae1 {[%clk 0:02:15]}  e6 {[%clk 0:02:13]} 15. b3 {[%clk 0:02:13]}  a5 {[%clk 0:02:11]} 16. Na4 {[%clk 0:02:11]}  Nb6 {[%clk 0:01:57]} 17. Nxb6 {[%clk 0:02:10]}  Qxb6+ {[%clk 0:01:58]} 18. Kh2 {[%clk 0:02:09]}  d5 {[%clk 0:01:56]} 19. e5 {[%clk 0:02:08]}  Nd7 {[%clk 0:01:56]} 20. h4 {[%clk 0:02:05]}  a4 {[%clk 0:01:23]} 21. h5 {[%clk 0:02:05]}  axb3 {[%clk 0:01:18]} 22. axb3 {[%clk 0:02:05]}  Nc5 {[%clk 0:01:11]} 23. Rf3 {[%clk 0:02:00]}  Nxd3 {[%clk 0:01:02]} 24. Qxd3 {[%clk 0:01:59]}  Qb5 {[%clk 0:01:01]} 25. c4 {[%clk 0:01:51]}  dxc4 {[%clk 0:01:00]} 26. bxc4 {[%clk 0:01:51]}  Qa4 {[%clk 0:00:51]} 27. Qe4 {[%clk 0:01:38]}  Rfd8 {[%clk 0:00:47]} 28. Be3 {[%clk 0:01:38]}  Qa2 {[%clk 0:00:40]} 29. Rh3 {[%clk 0:01:20]}  Rab8 {[%clk 0:00:34]} 30. Bc5 {[%clk 0:01:11]}  Rd2 {[%clk 0:00:28]} 31. h6 {[%clk 0:01:09]}  Bf8 {[%clk 0:00:18]} 32. Bxf8 {[%clk 0:01:05]}  Rxf8 {[%clk 0:00:18]} 33. Qxc6 {[%clk 0:01:05]}  Rc2 {[%clk 0:00:16]} 34. f5 {[%clk 0:00:55]}  Qxc4 {[%clk 0:00:13]} 35. Qxc4 {[%clk 0:00:45]}  Rxc4 {[%clk 0:00:14]} 36. f6 {[%clk 0:00:46]}  Rd4 {[%clk 0:00:12]} 37. Rb3 {[%clk 0:00:30]}  Rh4+ {[%clk 0:00:11]} 38. Kg3 {[%clk 0:00:29]}  Rxh6 {[%clk 0:00:09]} 39. Reb1 {[%clk 0:00:30]}  Rh5 {[%clk 0:00:03]} 40. Rb8 {[%clk 0:00:29]}  Rg5+ {[%clk 0:00:02]} 41. Kf4 {[%clk 0:00:27]}  Rf5+ {[%clk 0:00:02]} 42. Ke4 {[%clk 0:00:27]} 1-0


[Site "https://www.chess.com"]

[Event "Titled Tuesday Blitz January 10 Early 2023"]
[White "Jones, Gawain C B"]
[Black "Domingo Nunez, Ruben"]
[WhiteFideId "409561"]
[BlackFideId "22245570"]
[WhiteElo "2618"]
[BlackElo "2416"]
[Result "1-0"]
[Round "05"]
[TimeControl "180+2"]
[Date "2023.01.10"]
[WhiteClock "0:00:09"]
[BlackClock "0:00:12"]

1. c4 {[%clk 0:03:00]}  g6 {[%clk 0:02:59]} 2. Nc3 {[%clk 0:02:57]}  Bg7 {[%clk 0:03:00]} 3. d4 {[%clk 0:02:57]}  d6 {[%clk 0:03:01]} 4. e4 {[%clk 0:02:57]}  Nd7 {[%clk 0:03:00]} 5. f4 {[%clk 0:02:55]}  a6 {[%clk 0:03:00]} 6. Nf3 {[%clk 0:02:55]}  c5 {[%clk 0:02:59]} 7. d5 {[%clk 0:02:54]}  b5 {[%clk 0:03:00]} 8. cxb5 {[%clk 0:02:52]}  axb5 {[%clk 0:03:00]} 9. Bxb5 {[%clk 0:02:52]}  Qa5 {[%clk 0:02:59]} 10. a4 {[%clk 0:02:50]}  Ba6 {[%clk 0:02:56]} 11. Bd2 {[%clk 0:02:41]}  Qb4 {[%clk 0:02:50]} 12. O-O {[%clk 0:02:30]}  Nh6 {[%clk 0:02:36]} 13. Bxa6 {[%clk 0:02:25]}  Rxa6 {[%clk 0:02:36]} 14. Nb5 {[%clk 0:02:25]}  Qc4 {[%clk 0:02:23]} 15. Nc7+ {[%clk 0:02:03]}  Kf8 {[%clk 0:02:23]} 16. b3 {[%clk 0:01:50]}  Qd3 {[%clk 0:02:16]} 17. Nxa6 {[%clk 0:01:39]}  Qxa6 {[%clk 0:02:17]} 18. Rc1 {[%clk 0:01:37]}  Ng4 {[%clk 0:02:12]} 19. Qe1 {[%clk 0:01:28]}  Qd3 {[%clk 0:02:08]} 20. Bc3 {[%clk 0:01:27]}  Ngf6 {[%clk 0:01:50]} 21. Nd2 {[%clk 0:01:08]}  h5 {[%clk 0:01:50]} 22. Rf3 {[%clk 0:01:05]}  Qa6 {[%clk 0:01:50]} 23. Nc4 {[%clk 0:01:01]}  Kg8 {[%clk 0:01:42]} 24. Rd1 {[%clk 0:00:58]}  Kh7 {[%clk 0:01:41]} 25. h3 {[%clk 0:00:54]}  Rb8 {[%clk 0:01:39]} 26. e5 {[%clk 0:00:52]}  Ne8 {[%clk 0:01:36]} 27. e6 {[%clk 0:00:48]}  fxe6 {[%clk 0:01:33]} 28. dxe6 {[%clk 0:00:42]}  Ndf6 {[%clk 0:01:28]} 29. f5 {[%clk 0:00:28]}  gxf5 {[%clk 0:01:09]} 30. Ne3 {[%clk 0:00:27]}  d5 {[%clk 0:00:43]} 31. Nxd5 {[%clk 0:00:25]}  Ne4 {[%clk 0:00:24]} 32. Rxf5 {[%clk 0:00:20]}  Qxe6 {[%clk 0:00:23]} 33. Rxh5+ {[%clk 0:00:19]}  Kg8 {[%clk 0:00:23]} 34. Bxg7 {[%clk 0:00:11]}  Nxg7 {[%clk 0:00:24]} 35. Nf4 {[%clk 0:00:11]}  Qc6 {[%clk 0:00:17]} 36. Re5 {[%clk 0:00:10]}  Nf6 {[%clk 0:00:13]} 37. Rxe7 {[%clk 0:00:11]}  Rxb3 {[%clk 0:00:12]} 38. Rd8+ {[%clk 0:00:10]}  Nfe8 {[%clk 0:00:11]} 39. Rdxe8+ {[%clk 0:00:09]}  Nxe8 {[%clk 0:00:12]} 40. Rxe8+ {[%clk 0:00:09]} 1-0


[Site "https://www.chess.com"]

[Event "Titled Tuesday Blitz January 10 Early 2023"]
[White "Kadric, Denis"]
[Black "Seo, Jung Min"]
[WhiteFideId "14403803"]
[BlackFideId "1734687"]
[WhiteElo "2601"]
[BlackElo "2494"]
[Result "1-0"]
[Round "05"]
[TimeControl "180+2"]
[Date "2023.01.10"]
[WhiteClock "0:02:16"]
[BlackClock "0:00:31"]

1. e4 {[%clk 0:02:56]}  c5 {[%clk 0:02:59]} 2. Nc3 {[%clk 0:02:54]}  Nc6 {[%clk 0:02:59]} 3. Nge2 {[%clk 0:02:55]}  g6 {[%clk 0:02:57]} 4. d4 {[%clk 0:02:55]}  cxd4 {[%clk 0:02:58]} 5. Nxd4 {[%clk 0:02:56]}  Bg7 {[%clk 0:02:58]} 6. Be3 {[%clk 0:02:57]}  Nf6 {[%clk 0:02:59]} 7. Bc4 {[%clk 0:02:58]}  O-O {[%clk 0:02:54]} 8. Bb3 {[%clk 0:02:58]}  d6 {[%clk 0:02:54]} 9. f3 {[%clk 0:02:59]}  Bd7 {[%clk 0:02:53]} 10. h4 {[%clk 0:02:59]}  h5 {[%clk 0:02:52]} 11. Qd2 {[%clk 0:03:00]}  a6 {[%clk 0:02:51]} 12. O-O-O {[%clk 0:02:59]}  Rc8 {[%clk 0:02:48]} 13. Kb1 {[%clk 0:02:58]}  b5 {[%clk 0:02:47]} 14. g4 {[%clk 0:02:58]}  hxg4 {[%clk 0:02:47]} 15. h5 {[%clk 0:02:58]}  Nxh5 {[%clk 0:02:45]} 16. Nf5 {[%clk 0:02:55]}  Bxf5 {[%clk 0:02:43]} 17. exf5 {[%clk 0:02:54]}  Na5 {[%clk 0:02:16]} 18. fxg4 {[%clk 0:02:54]}  Nxb3 {[%clk 0:02:15]} 19. axb3 {[%clk 0:02:55]}  Nf6 {[%clk 0:02:07]} 20. Qh2 {[%clk 0:02:52]}  Qc7 {[%clk 0:01:35]} 21. Bd4 {[%clk 0:02:42]}  Rfe8 {[%clk 0:01:34]} 22. Bxf6 {[%clk 0:02:28]}  exf6 {[%clk 0:01:34]} 23. Nd5 {[%clk 0:02:25]}  Qc5 {[%clk 0:01:30]} 24. g5 {[%clk 0:02:17]}  Re5 {[%clk 0:00:31]} 25. gxf6 {[%clk 0:02:16]} 1-0


[Site "https://www.chess.com"]

[Event "Titled Tuesday Blitz January 10 Early 2023"]
[White "Pultinevicius, Paulius"]
[Black "Boyer, Mahel"]
[WhiteFideId "12809390"]
[BlackFideId "45102422"]
[WhiteElo "2537"]
[BlackElo "2489"]
[Result "1-0"]
[Round "05"]
[TimeControl "180+2"]
[Date "2023.01.10"]
[WhiteClock "0:00:19"]
[BlackClock "0:00:03"]

1. d4 {[%clk 0:03:00]}  d5 {[%clk 0:02:58]} 2. Bf4 {[%clk 0:03:01]}  e6 {[%clk 0:02:57]} 3. e3 {[%clk 0:03:02]}  Bd6 {[%clk 0:02:57]} 4. Bg3 {[%clk 0:03:01]}  Nf6 {[%clk 0:02:55]} 5. Nd2 {[%clk 0:03:01]}  c5 {[%clk 0:02:55]} 6. Ngf3 {[%clk 0:03:00]}  O-O {[%clk 0:02:49]} 7. c3 {[%clk 0:03:00]}  Qc7 {[%clk 0:02:49]} 8. dxc5 {[%clk 0:02:59]}  Qxc5 {[%clk 0:02:47]} 9. Bd3 {[%clk 0:03:00]}  Nbd7 {[%clk 0:02:35]} 10. e4 {[%clk 0:02:57]}  Bxg3 {[%clk 0:02:31]} 11. hxg3 {[%clk 0:02:57]}  dxe4 {[%clk 0:02:31]} 12. Nxe4 {[%clk 0:02:57]}  Nxe4 {[%clk 0:02:28]} 13. Bxe4 {[%clk 0:02:58]}  Nf6 {[%clk 0:02:26]} 14. Qe2 {[%clk 0:02:54]}  Rd8 {[%clk 0:02:21]} 15. Ne5 {[%clk 0:02:51]}  h6 {[%clk 0:02:11]} 16. Bc2 {[%clk 0:02:36]}  b6 {[%clk 0:01:47]} 17. f4 {[%clk 0:02:17]}  Bb7 {[%clk 0:01:35]} 18. g4 {[%clk 0:02:16]}  Nd5 {[%clk 0:01:34]} 19. Nd3 {[%clk 0:01:49]}  Qe3 {[%clk 0:01:27]} 20. c4 {[%clk 0:01:46]}  Qg3+ {[%clk 0:00:55]} 21. Qf2 {[%clk 0:01:45]}  Qxf2+ {[%clk 0:00:55]} 22. Kxf2 {[%clk 0:01:46]}  Nxf4 {[%clk 0:00:56]} 23. Rhd1 {[%clk 0:01:20]}  Nxg2 {[%clk 0:00:50]} 24. b4 {[%clk 0:01:16]}  Rac8 {[%clk 0:00:42]} 25. c5 {[%clk 0:01:16]}  Rd4 {[%clk 0:00:31]} 26. Ne5 {[%clk 0:00:56]}  bxc5 {[%clk 0:00:17]} 27. bxc5 {[%clk 0:00:54]}  Rd5 {[%clk 0:00:02]} 28. Rxd5 {[%clk 0:00:23]}  Bxd5 {[%clk 0:00:03]} 29. Rc1 {[%clk 0:00:23]}  Nf4 {[%clk 0:00:02]} 30. Ke3 {[%clk 0:00:20]}  g5 {[%clk 0:00:03]} 31. Ba4 {[%clk 0:00:17]}  Kg7 {[%clk 0:00:02]} 32. Bd7 {[%clk 0:00:17]}  Rc7 {[%clk 0:00:02]} 33. c6 {[%clk 0:00:17]}  f6 {[%clk 0:00:03]} 34. Nf3 {[%clk 0:00:17]}  Bxf3 {[%clk 0:00:02]} 35. Kxf3 {[%clk 0:00:18]}  Kf7 {[%clk 0:00:03]} 36. Ke4 {[%clk 0:00:18]}  Ke7 {[%clk 0:00:03]} 37. Rh1 {[%clk 0:00:19]} 1-0


[Site "https://www.chess.com"]

[Event "Titled Tuesday Blitz January 10 Early 2023"]
[White "Baskakov, Egor"]
[Black "Garcia Ramos, Daniel"]
[WhiteFideId "24197866"]
[BlackFideId "32010311"]
[WhiteElo "2215"]
[BlackElo "2442"]
[Result "1-0"]
[Round "05"]
[TimeControl "180+2"]
[Date "2023.01.10"]
[WhiteClock "0:00:15"]
[BlackClock "0:00:01"]

1. e4 {[%clk 0:03:00]}  c6 {[%clk 0:02:58]} 2. d4 {[%clk 0:03:00]}  d5 {[%clk 0:02:59]} 3. e5 {[%clk 0:03:00]}  Bf5 {[%clk 0:02:59]} 4. Ne2 {[%clk 0:03:01]}  e6 {[%clk 0:02:58]} 5. Ng3 {[%clk 0:03:01]}  Bg6 {[%clk 0:02:58]} 6. h4 {[%clk 0:03:02]}  f6 {[%clk 0:02:52]} 7. h5 {[%clk 0:03:01]}  Bf7 {[%clk 0:02:52]} 8. f4 {[%clk 0:03:02]}  Nh6 {[%clk 0:02:46]} 9. Nd2 {[%clk 0:02:58]}  Be7 {[%clk 0:02:44]} 10. Nf3 {[%clk 0:02:57]}  Nd7 {[%clk 0:02:43]} 11. Bd3 {[%clk 0:02:56]}  f5 {[%clk 0:02:39]} 12. Ng5 {[%clk 0:02:54]}  Ng4 {[%clk 0:02:39]} 13. Be2 {[%clk 0:02:46]}  Nh6 {[%clk 0:02:34]} 14. O-O {[%clk 0:02:42]}  O-O {[%clk 0:02:29]} 15. Be3 {[%clk 0:02:26]}  c5 {[%clk 0:02:24]} 16. c3 {[%clk 0:02:25]}  Qb6 {[%clk 0:02:22]} 17. Qb3 {[%clk 0:02:15]}  c4 {[%clk 0:02:10]} 18. Qc2 {[%clk 0:02:15]}  Qc7 {[%clk 0:02:07]} 19. Nh1 {[%clk 0:01:57]}  b5 {[%clk 0:02:01]} 20. Nf2 {[%clk 0:01:54]}  a5 {[%clk 0:02:01]} 21. Nxf7 {[%clk 0:01:41]}  Rxf7 {[%clk 0:01:58]} 22. g4 {[%clk 0:01:41]}  fxg4 {[%clk 0:01:54]} 23. Nxg4 {[%clk 0:01:38]}  Nf5 {[%clk 0:01:53]} 24. Bf2 {[%clk 0:01:38]}  Raf8 {[%clk 0:01:51]} 25. Kg2 {[%clk 0:01:25]}  Bh4 {[%clk 0:01:48]} 26. Bg1 {[%clk 0:01:18]}  g6 {[%clk 0:01:22]} 27. hxg6 {[%clk 0:01:15]}  Rg7 {[%clk 0:01:22]} 28. gxh7+ {[%clk 0:01:06]}  Kxh7 {[%clk 0:01:22]} 29. Kh1 {[%clk 0:00:51]}  Rfg8 {[%clk 0:01:21]} 30. Ne3 {[%clk 0:00:43]}  Kh8 {[%clk 0:00:51]} 31. Nxf5 {[%clk 0:00:42]}  exf5 {[%clk 0:00:48]} 32. Rf3 {[%clk 0:00:32]}  Bg3 {[%clk 0:00:36]} 33. Rxg3 {[%clk 0:00:31]}  Rxg3 {[%clk 0:00:36]} 34. Bh2 {[%clk 0:00:31]}  Rg2 {[%clk 0:00:15]} 35. Qxf5 {[%clk 0:00:30]}  Nf8 {[%clk 0:00:16]} 36. Bf3 {[%clk 0:00:24]}  R2g6 {[%clk 0:00:11]} 37. Qh5+ {[%clk 0:00:19]}  Nh7 {[%clk 0:00:11]} 38. Bxd5 {[%clk 0:00:16]}  R8g7 {[%clk 0:00:08]} 39. Be4 {[%clk 0:00:14]}  Re6 {[%clk 0:00:01]} 40. f5 {[%clk 0:00:15]}  Re8 {[%clk 0:00:01]} 41. f6 {[%clk 0:00:15]} 1-0


[Site "https://www.chess.com"]